Cogmind - Beta 13 @@@ ROGUE MODE // 2024.05.25 @ 11:56:49 Player: KoT Result: Destroyed by S-10 Pest with Light Assault Rifle Performance ------------- Evolutions (1) 500 Regions Visited (2) 400 Robots Destroyed (21) 105 Value Destroyed (376) 376 Prototype IDs (1) 20 Alien Tech Used (0) 0 Bonus (0) 0 TOTAL SCORE: 1401 Bonus ------- None Cogmind --------- Core Integrity 0/400 Matter 289/300 Energy 99/100 System Corruption 0% Temperature Cool (0) Movement Core (50) Location -9/Materials Parts ------- > --- POWER (1) -------- (None) > --- PROPULSION (3) --- (None) > --- UTILITY (3) ------ Signal Interpreter > --- WEAPON (2) ------- (None) > --- INVENTORY (5) ---- Light Ion Engine Light Ion Engine High-capacity Storage Unit Recalibrator Field Recycling Unit (0) Peak State ------------ > --- POWER ------------ Light Ion Engine > --- PROPULSION ------- Improved Flight Unit Improved Flight Unit Improved Flight Unit > --- UTILITY ---------- Small Storage Unit Signal Interpreter > --- WEAPON ----------- Medium Laser Small Laser > --- INVENTORY -------- Light Ion Engine Light Ion Engine High-capacity Storage Unit Recalibrator Field Recycling Unit Grenade Launcher [Rating: 15] Favorites ----------- Power Light Ion Engine Engine Light Ion Engine Propulsion Improved Flight Unit Flight Unit Improved Flight Unit Utility Signal Interpreter Device Field Recycling Unit Storage Small Storage Unit Processor Signal Interpreter Weapon Medium Laser Energy Gun Medium Laser Ballistic Gun Light Assault Rifle Launcher Grenade Launcher Special Weapon Plasma Cutter Build | -11 -10 -9 ------- Run | Yrd Mat Mat Slots Evolved 2 | . . 2 Power . | . . . Propulsion 1 | . . 1 Utility 1 | . . 1 Weapon . | . . . Parts Attached 22 | 1 16 5 Power 5 | 1 3 1 Engine 5 | 1 3 1 Core . | . . . Reactor . | . . . Propulsion 5 | . 3 2 Treads . | . . . Leg . | . . . Wheel . | . . . Hover . | . . . Flight 5 | . 3 2 Utility 4 | . 4 . Device 1 | . 1 . Storage 2 | . 2 . Processor 1 | . 1 . Hackware . | . . . Protection . | . . . Artifact . | . . . Weapon 8 | . 6 2 Energy Gun 4 | . 4 . Energy Cannon . | . . . Ballistic Gun 2 | . 2 . Ballistic Cannon . | . . . Launcher 1 | . . 1 Special Weapon 1 | . . 1 Impact Weapon . | . . . Slashing Weapon . | . . . Piercing Weapon . | . . . Special Melee Weapon . | . . . Unidentified Prototypes 1 | . 1 . Parts Lost 14 | . 4 10 Power 3 | . 2 1 Propulsion 5 | . 1 4 Utility 1 | . . 1 Weapon 5 | . 1 4 Highest Loss Streak 8 | . 2 8 To Critical Strikes . | . . . Average Slot Usage (%) 60 | . 61 57 Engine 9 | . 11 5 Flight 17 | . 17 16 Storage 6 | . 6 5 Processor 9 | . 9 11 Energy Gun 9 | . 9 9 Ballistic Gun 4 | . 6 . Launcher 1 | . . 5 Special Weapon 1 | . . 4 Naked Turns . | . . . Heaviest Build 11 | 3 11 11 Greatest Support 15 | 3 10 15 Greatest Overweight (x) 1 | . 1 1 Average Overweight (x) . | . . . Largest Inventory Capacity 20 | 5 20 8 Average Capacity 6 | 5 6 6 Most Carried 8 | 3 8 7 Average Carried 4 | 2 4 5 Final Capacity 8 | 5 8 5 Final Carried 8 | 3 8 5 Class Distribution -------------------- 92% | Mutant 7% | Scavenger-Mutant Dominant Class ---------------- Mutant | -10/Materials Mutant | -9/Materials Resources | -11 -10 -9 ----------- Run | Yrd Mat Mat Matter Collected 473 | 210 130 133 Remotely . | . . . Salvage Created 469 | . 215 254 Parts 43 | . 27 16 Haulers Intercepted . | . . . Recyclers Shooed 2 | . 2 . Parts Field Recycled . | . . . Retrieved Matter . | . . . Parts Self-Destructed . | . . . Prevented . | . . . Kills | -11 -10 -9 ------- Run | Yrd Mat Mat Combat Hostiles Destroyed 16 | . 7 9 Guns 11 | . 7 4 AOE 5 | . . 5 Classes Destroyed 7 | . 5 2 Builder 1 | . 1 . Recycler 2 | . 1 1 Mechanic 1 | . . 1 Operator 1 | . 1 . Swarmer 9 | . 6 3 Grunt 6 | . 1 5 Brawler 1 | . . 1 Best Kill Streak 9 | . 3 9 Combat Bots Only 8 | . 3 8 Max Kills in Single Turn 4 | . 1 4 Gunslinging . | . . . Exploded 3 | . . 3 Melee . | . . . Uniques/NPCs Destroyed . | . . . Combat | -11 -10 -9 -------- Run | Yrd Mat Mat Hostile Shots Fired 184 | . 88 96 Missed 57 | . 29 28 Damage Taken 1353 | . 506 847 Core 597 | . 197 400 Absorbed by Shields . | . . . Core Remaining (%) 60 | 100 21 . Volleys Fired 97 | . 56 41 Largest 2 | . 2 2 Hottest 90 | . 70 90 Shots Fired 126 | . 70 56 Gun 113 | . 70 43 Cannon . | . . . Launcher 9 | . . 9 Special 4 | . . 4 Kinetic 35 | . 35 . Thermal 82 | . 35 47 Explosive 9 | . . 9 Electromagnetic . | . . . Robot Hit Streak 8 | . 4 8 Robot Miss Streak 10 | . 10 5 Penetration Max . | . . . Secondary Targets . | . . . Shots Hit Robots 66 | . 34 32 Core Hits 31 | . 13 18 Critical Kills 1 | . 1 . Critical Parts Destroyed . | . . . Critical Strikes 3 | . 3 . Burn 2 | . 2 . Destroy 1 | . 1 . Melee Attacks . | . . . Impact . | . . . Slashing . | . . . Piercing . | . . . Sneak Attacks . | . . . Combat Hostiles . | . . . Follow-up Attacks . | . . . Damage Inflicted 1147 | . 366 781 Guns 628 | . 366 262 Cannons . | . . . Explosions 509 | . . 509 Melee . | . . . Ramming . | . . . Kinetic 142 | . 142 . Thermal 496 | . 224 272 Explosive 509 | . . 509 Electromagnetic . | . . . Impact . | . . . Slashing . | . . . Piercing . | . . . Highest Corruption 2 | . 2 . Average Corruption 2 | . 2 . Corruption Purged . | . . . Corruption Blocked . | . . . Effects 5 | . 5 . Message Errors 1 | . 1 . Matter Fused 1 | . 1 . Heat Flow Errors 1 | . 1 . Data Loss (minor) 1 | . 1 . Weapon Failures 1 | . 1 . Overload Shots . | . . . Overflow Damage 2 | . . 2 Projectiles . | . . . Explosions 2 | . . 2 Melee . | . . . Knockbacks . | . . . Impact . | . . . Kinetic . | . . . Secondary . | . . . Self-Inflicted Damage 172 | . . 172 Shots 5 | . . 5 Rammed . | . . . Targets Rammed . | . . . Kicked . | . . . Crushed . | . . . Highest Temperature 261 | . 220 261 Average Temperature 89 | . 45 139 Received Heat Transfer 294 | . 48 246 Effects 2 | . . 2 Interference 2 | . . 2 Siege Activations . | . . . Robots Corrupted . | . . . Combat Hostiles . | . . . Parts Fried . | . . . Impact Corruptions . | . . . Robots Melted . | . . . Combat Hostiles . | . . . Parts Melted 1 | . 1 . Heat Transferred 1498 | . 814 684 Parts Sabotaged . | . . . Parts Stolen . | . . . Parts Stripped . | . . . Power Chain Reactions . | . . . Alert | -11 -10 -9 ------- Run | Yrd Mat Mat Peak Influence 379 | . 220 379 Initial 29 | . . 29 Average 120 | . 68 234 Maximum Alert Level 1 | . 1 1 Low Security (%) 78 | 100 91 50 Level 1 21 | . 8 49 Level 2 . | . . . Level 3 . | . . . Level 4 . | . . . Level 5 . | . . . High Security . | . . . Max Security . | . . . Squads Dispatched 5 | . 2 3 Investigation . | . . . Extermination . | . . . Reinforcement 5 | . 2 3 Assault . | . . . Garrison . | . . . Intercept . | . . . Searches Triggered . | . . . Construction Impeded . | . . . Haulers Reinforced . | . . . Active Scanning Responses . | . . . Cargo Convoy Interrupts . | . . . Stealth | -11 -10 -9 --------- Run | Yrd Mat Mat Distress Signals 4 | . 1 3 Communications Jammed . | . . . Distress Signals . | . . . Times Spotted 45 | . 19 26 Peak Tracking Total 9 | . 5 9 Tactical Retreats 7 | . 4 3 Traps | -11 -10 -9 ------- Run | Yrd Mat Mat Traps Triggered 1 | . 1 . Indirectly . | . . . Trap Hack Attempts . | . . . Triggered . | . . . Disarmed . | . . . Reprogrammed . | . . . Reused . | . . . Traps Extracted . | . . . Installed . | . . . Triggered . | . . . Machines | -11 -10 -9 ---------- Run | Yrd Mat Mat Machines Disabled . | . . . Max in Single Turn . | . . . Machines Repaired . | . . . Machines Dismantled 1 | . . 1 Machines Sabotaged . | . . . Overloaded Fab Kills . | . . . Hacking | -11 -10 -9 --------- Run | Yrd Mat Mat Machines Accessed 3 | . 2 1 Terminals 3 | . 2 1 Fabricators . | . . . Repair Stations . | . . . Recycling Units . | . . . Scanalyzers . | . . . Garrison Access . | . . . Total Hacks 10 | . 7 3 Successful 6 | . 3 3 Failed 4 | . 4 . Catastrophic . | . . . Database Lockouts . | . . . Manual 10 | . 7 3 Terminals 10 | . 7 3 Fabricators . | . . . Repair Stations . | . . . Recycling Units . | . . . Scanalyzers . | . . . Garrison Access . | . . . Terminal Hacks . | . . . Fabricator Hacks . | . . . Repair Station Hacks . | . . . Recycling Unit Hacks . | . . . Scanalyzer . | . . . Garrison Access Hacks . | . . . Unauthorized Hacks 6 | . 3 3 Terminals 6 | . 3 3 Track 1 | . . 1 Botnet 3 | . 2 1 Operators 2 | . 1 1 Fabricators . | . . . Repair Stations . | . . . Recycling Units . | . . . Scanalyzers . | . . . Garrison Access . | . . . Data Cores Recovered . | . . . Used . | . . . Hacking Detections 3 | . 2 1 Full Trace Events . | . . . Feedback Events . | . . . Feedback Blocked . | . . . Robot Schematics Acquired . | . . . Robots Built . | . . . Authchips . | . . . Time . | . . . Total Robot Build Rating . | . . . Part Schematics Acquired . | . . . Parts Built . | . . . Authchips . | . . . Time . | . . . Total Part Build Rating . | . . . Parts Repaired . | . . . Time . | . . . Parts Recycled . | . . . Recycled Matter . | . . . Retrieved Matter . | . . . Retrieved Components . | . . . Parts Scanalyzed . | . . . Part Schematics Acquired . | . . . Parts Damaged . | . . . Bothacking | -11 -10 -9 ------------ Run | Yrd Mat Mat Used RIF Installer . | . . . Robots Hacked . | . . . Non-combat . | . . . Combat . | . . . Robot Hacks Applied . | . . . Relay Couplers Released . | . . . Fabnet Peak Effective % . | . . . Robots Rewired . | . . . Allies Hacked . | . . . Hacks Repelled . | . . . Allies | -11 -10 -9 -------- Run | Yrd Mat Mat Total Allies . | . . . Largest Group . | . . . Highest-Rated Group . | . . . Highest-Rated Ally . | . . . Total Orders . | . . . Ally Attacks . | . . . Total Damage . | . . . Kills . | . . . Allies Corrupted . | . . . Allies Melted . | . . . Intel | -11 -10 -9 ------- Run | Yrd Mat Mat Robot Analysis Total . | . . . Derelict Logs Recovered . | . . . Drone Launches . | . . . Drone Recoveries . | . . . Exploration | -11 -10 -9 ------------- Run | Yrd Mat Mat Turns Passed 775 | 33 485 257 Spaces Moved 854 | 56 552 246 Core 369 | 56 207 106 Treads . | . . . Legs . | . . . Wheels . | . . . Hover . | . . . Flight 485 | . 345 140 Fastest Speed 34 | 50 37 34 Average Speed 55 | 50 54 56 Slowest Speed 112 | 50 112 100 Overloaded Moves . | . . . Propulsion Burnouts . | . . . Robots Hopped 1 | . 1 . Cave-ins Triggered . | . . . Exploration Rate (%) 34 | 4 52 47 Regions Visited 2 Branch Regions . Pre-discovered Areas . | . . . Known Exits Taken 1 | . 1 . Unknown Exits Taken 1 | 1 . . Scrap Searched . | . . . Spaces Dug . | . . . Terrain Destroyed 40 | . . 40 Melee . | . . . Projectile . | . . . AOE 40 | . . 40 Terrain Rammed . | . . . Walls Destroyed . | . . . Machines Disabled . | . . . Actions | -11 -10 -9 --------- Run | Yrd Mat Mat Total 1026 | 60 670 296 Wait 29 | . 29 . Move 850 | 55 549 246 Hop 1 | . 1 . Pick Up 16 | 4 11 1 Fast Attach 6 | . 5 1 Attach 14 | 1 9 4 Detach 5 | . 5 . Swap 2 | . 2 . Drop 3 | . 3 . Fire 97 | . 56 41 Melee . | . . . Ram . | . . . Kick . | . . . Crush . | . . . Escape Stasis . | . . . Rewire . | . . . Trap . | . . . Miscellaneous 3 | . . 3 Route ------- -11/Scrapyard -10/Materials (discovered 2 exits: *Mat / [*Min]) -9/Materials (discovered 1 exit: [*Mat]) History --------- Turn | Location | Event 13 | -11/Scrapyard | Discovered new exit (range 14) 34 | -11/Scrapyard | Entered Materials 195 | -10/Materials | Discovered new exit (range 10) 219 | -10/Materials | Identified exit to Materials 311 | -10/Materials | Discovered new exit (range 7) 322 | -10/Materials | Build established: Mutant 380 | -10/Materials | Core integrity fell below 50% 519 | -10/Materials | Entered another Materials area 519 | -9/Materials | Evolved 2 slots: Propulsion x1, Utility x1 618 | -9/Materials | Discovered new exit (range 15) 654 | -9/Materials | Core integrity fell below 50% 658 | -9/Materials | Core integrity fell below 20% 680 | -9/Materials | Destroyed 8 combat bots 681 | -9/Materials | Lost 8 parts (1p4n1u2w) 776 | -9/Materials | Destroyed by S-10 Pest with Light Assault Rifle Last Messages --------------- 00693_ The unstable cave ceiling collapses. 00693_ U-05 Engineer lays Concrete. 00694_ The unstable cave ceiling collapses. 00694_ U-05 Engineer builds a Wall. 00696_ K-01 Serf collects debris. 00754_ Dismantling Matter Filter with Plasma Cutter. 00758_ K-01 Serf collects debris. 00760_ K-01 Serf cleans the Matter Filter. 00761_ Dismantling Matter Filter with Plasma Cutter. 00761_ Matter Filter dismantled. 00762_ Acquired 2 matter. 00762_ K-01 Serf collects debris. 00764_ Acquired 4 matter. 00765_ K-01 Serf collects debris. 00766_ Acquired 8 matter. 00768_ Grenade Launcher destroyed. 00769_ K-01 Serf collects debris. 00775_ Plasma Cutter destroyed. Map ----- +----------------------------------------------------+ | ???????????????# #??# ??????????????????????? | | ???????????????# #??# ??????????????????????? | | ???????????????# #??# ??????????????????????? | | ???????????????# #??# ??????????????????????? | | ???????????????# #??# ?????###??????????????? | | ???????????????+^ #??# #???? #??????????????? | | ???????????????# #??# #??? #??????????????? | | ???????????????# #??# #??? #??????????????? | | ???????????????# #??# #??? #??????????????? | | ???????????????# #??# #?? ! ???????????????? | | ???????????????# #??# #?? ????????????????? | | ???????????????# #??# ###+####### #???????? | | ?????########### #??# #???????? | | ????# #??# ??????? | | ????# #??# #???????? | | ????# """ """ #??# k """"" #?????????? | | ????? ??""" """ #??# """""" ??????????????? | | ????# """ """ #??# ss"""""""???????????????? | | ????# #### """"""" ??????????????? | | ????# g """"""" ????????? | | ????# !!! """ ????????? | | ????# !!! """ gs ! ????????? | | ????# !!! """ ####/######## ????????? | | ????? # #?????? #??????????? | | ?????? o # #??????????????????? | | ????? """ """ # @ #??????????????????? | | ?????? ??"" """ # [#??????????????????? | | ?????????"" """ # #??????????????????? | | ????????? ? # #??????????????????? | | ?????????? ?? # #??????????????????? | | ?????????????## # #??????????????????? | | ??????????????####### w #??????????????????? | | ????????????????????####/#####??????????????????? | | ???????????????????????# #??????????????????????? | | ???????????????????????? ???????????????????????? | | ???????????????????????? ???????????????????????? | | ???????????????????????? ???????????????????????? | | ???????????????????????? ???????????????????????? | | ???????????????????????? ???????????????????????? | | ????????????????????????#???????????????????????? | | ????????????????????????????????????????????????? | | ????????????????????????????????????????????????? | | ????????????????????????????????????????????????? | | ????????????????????????????????????????????????? | | ????????????????????????????????????????????????? | | ????????????????????????????????????????????????? | | ????????????????????????????????????????????????? | | ????????????????????????????????????????????????? | | ????????????????????????????????????????????????? | | ????????????????????????????????????????????????? | +----------------------------------------------------+ Best States ------------- Heat Dissipation 28 Energy Generation 10 Energy Capacity 125 Matter Stores 300 Matter Capacity 300 Sight Range 16 Terrain Scan Density 10 Evasion (%) 63 Item Schematics ----------------- None Robot Schematics ------------------ None Fabricated ------------ Nothing Alien Tech Used ----------------- None Achievements -------------- None Challenges ------------ None Game ------ Seed FusionDisposableImmobilizer Manual? 0 Play Time 00:15:07 Cumulative 27.8 hours Start 2024.05.25 @ 11:42:45 End 2024.05.25 @ 11:56:49 Sessions 1 Manual Loads 0 Difficulty Rogue Special Mode None Game No. 42 Rogue 42 Adventurer 0 Explorer 0 Win Type - Total 0 Types 0/0/0/0/0/0/0/0/0 Lore% 26 Gallery% 26 Achievement% 25 Wizard Run 0 Options --------- Layout 1 ASCII 0 Keyboard 0 Movement Mouse Keybinds 0 Fullscreen 1 Font 24/Smallcaps Map View 50x35 Zoom Use 0% Tactical HUD 1 Map Filters NONE Filters NONE Steam 0 RUN: 1ef0f8c7-4b1e-4665-a197-9cffe6980b33